{"text_format":"3","workbook":"xlsx","n_sheets":4,"sheets":["Λίστα αγορών","Ανάλυση προϋπολογισμού","Λίστα εκκρεμοτήτων","Κοινή χρήση λίστας"],"not_rendered":{"charts":2,"images":2,"defined_names":12},"read":"whole","date_system":"1900"}

{"sheet":"Λίστα αγορών","index":0,"n_rows":25,"n_cols":8,"rows_kept":25,"merged":[[0,1,0,3],[2,1,2,7],[3,1,3,2],[4,4,6,7]]}
[null,"Επιστροφή στο σχολείο",null,null,"Πρόγραμμα"]
[]
[null,"Παρακολουθήστε την πρόοδο των αγορών σας σε σχέση με τα ποσά κατηγορίας προϋπολογισμού που έχετε εισάγει στην ανάλυση προϋπολογισμού."]
[null,"Σύνοψη προϋπολογισμού",null,null,{"$f":"\"Πρόοδος αγορών (\"&COUNTIFS(Λίστα_ελέγχου[Αγορασμένα], \">0\")&\" από \"&COUNTIFS(Λίστα_ελέγχου[Αγορά], \">0\")&\")\"","v":"Πρόοδος αγορών (1 από 6)"}]
[null,"Προϋπολογισμός",{"v":1500,"d":"1,500.00 €"},null,{"$f":"IFERROR(COUNTIFS(Λίστα_ελέγχου[Αγορά],\">0\",Λίστα_ελέγχου[Αγορασμένα],\">0\")/ΣύνολοΕιδώνΓιαΑγορά,0)","v":{"v":0.16666666666666666,"d":"17%"}}]
[null,"Σύνολο λίστας αγορών",{"$f":"IFERROR(SUM(ΣύνολοΛίσταςΕλέγχου), \"\")","v":{"v":365,"d":"365.00 €"}}]
[null,"Μετρητά που απομένουν",{"$f":"IFERROR(C5-C6, \"\")","v":{"v":1135,"d":"1,135.00 €"}}]
[null,"Λίστα αγορών"]
[null,"Είδος","Κατηγορία","Ποσότητα","Αγορά","Κόστος","Αγορασμένα","Συνολικό κόστος"]
[null,"Μαθηματικά","Βιβλία",1,1,{"v":55,"d":"55.00 €"},1,{"$f":"IFERROR(Λίστα_ελέγχου[Ποσότητα]*Λίστα_ελέγχου[Κόστος], \"\")","v":{"v":55,"d":"55.00 €"}}]
[null,"Αγγλικά","Βιβλία",1,1,null,null,{"$f":"IFERROR(Λίστα_ελέγχου[Ποσότητα]*Λίστα_ελέγχου[Κόστος], \"\")","v":0}]
[null,"Σακίδιο","Προμήθειες",1,null,{"v":30,"d":"30.00 €"},null,{"$f":"IFERROR(Λίστα_ελέγχου[Ποσότητα]*Λίστα_ελέγχου[Κόστος], \"\")","v":{"v":30,"d":"30.00 €"}}]
[null,"Αριθμομηχανή","Προμήθειες",1,{"$nulls":3},{"$f":"IFERROR(Λίστα_ελέγχου[Ποσότητα]*Λίστα_ελέγχου[Κόστος], \"\")","v":0}]
[null,"Μαρκαδόροι επισήμανσης","Προμήθειες",3,{"$nulls":3},{"$f":"IFERROR(Λίστα_ελέγχου[Ποσότητα]*Λίστα_ελέγχου[Κόστος], \"\")","v":0}]
[null,"Στολή","Ρούχα",2,1,{"v":100,"d":"100.00 €"},null,{"$f":"IFERROR(Λίστα_ελέγχου[Ποσότητα]*Λίστα_ελέγχου[Κόστος], \"\")","v":{"v":200,"d":"200.00 €"}}]
[null,"Πουκάμισο","Ρούχα",4,{"$nulls":3},{"$f":"IFERROR(Λίστα_ελέγχου[Ποσότητα]*Λίστα_ελέγχου[Κόστος], \"\")","v":0}]
[null,"Μπλουζάκια","Ρούχα",5,{"$nulls":3},{"$f":"IFERROR(Λίστα_ελέγχου[Ποσότητα]*Λίστα_ελέγχου[Κόστος], \"\")","v":0}]
[null,"Σορτς","Ρούχα",2,{"$nulls":3},{"$f":"IFERROR(Λίστα_ελέγχου[Ποσότητα]*Λίστα_ελέγχου[Κόστος], \"\")","v":0}]
[null,"Αθλητικά παπούτσια","Ρούχα",2,1,null,null,{"$f":"IFERROR(Λίστα_ελέγχου[Ποσότητα]*Λίστα_ελέγχου[Κόστος], \"\")","v":0}]
[null,"Κάλτσες","Ρούχα",10,{"$nulls":3},{"$f":"IFERROR(Λίστα_ελέγχου[Ποσότητα]*Λίστα_ελέγχου[Κόστος], \"\")","v":0}]
[null,"Ανοιξιάτικο τζάκετ","Ρούχα",1,1,{"v":80,"d":"80.00 €"},null,{"$f":"IFERROR(Λίστα_ελέγχου[Ποσότητα]*Λίστα_ελέγχου[Κόστος], \"\")","v":{"v":80,"d":"80.00 €"}}]
[null,"Πουλόβερ","Ρούχα",1,{"$nulls":3},{"$f":"IFERROR(Λίστα_ελέγχου[Ποσότητα]*Λίστα_ελέγχου[Κόστος], \"\")","v":0}]
[null,"Φούτερ","Ρούχα",1,{"$nulls":3},{"$f":"IFERROR(Λίστα_ελέγχου[Ποσότητα]*Λίστα_ελέγχου[Κόστος], \"\")","v":0}]
[null,"Εσώρουχα","Ρούχα",10,{"$nulls":3},{"$f":"IFERROR(Λίστα_ελέγχου[Ποσότητα]*Λίστα_ελέγχου[Κόστος], \"\")","v":0}]
[null,"Χειμωνιάτικο τζάκετ","Ρούχα",1,1,null,null,{"$f":"IFERROR(Λίστα_ελέγχου[Ποσότητα]*Λίστα_ελέγχου[Κόστος], \"\")","v":0}]

{"sheet":"Ανάλυση προϋπολογισμού","index":1,"n_rows":6,"n_cols":3,"rows_kept":6}
[null,"Ανάλυση προϋπολογισμού"]
[null,"Προσθέστε κατηγορίες και ποσά προϋπολογισμού για παρακολούθηση στη λίστα αγορών σας."]
[null,"Κατηγορία","Συνολικό κόστος"]
[null,"Ρούχα",{"$f":"IFERROR(SUMIFS(Λίστα_ελέγχου[Συνολικό κόστος],Λίστα_ελέγχου[Κατηγορία],Κατηγορία[Κατηγορία]), \"\")","v":{"v":280,"d":"280.00 €"}}]
[null,"Προμήθειες",{"$f":"IFERROR(SUMIFS(Λίστα_ελέγχου[Συνολικό κόστος],Λίστα_ελέγχου[Κατηγορία],Κατηγορία[Κατηγορία]), \"\")","v":{"v":30,"d":"30.00 €"}}]
[null,"Βιβλία",{"$f":"IFERROR(SUMIFS(Λίστα_ελέγχου[Συνολικό κόστος],Λίστα_ελέγχου[Κατηγορία],Κατηγορία[Κατηγορία]), \"\")","v":{"v":55,"d":"55.00 €"}}]

{"sheet":"Λίστα εκκρεμοτήτων","index":2,"n_rows":22,"n_cols":3,"rows_kept":22}
[null,"Λίστα εκκρεμοτήτων"]
[null,"Παρακολουθήστε όλες τις δραστηριότητες που πρέπει να ολοκληρώσετε πριν ξεκινήσει το σχολείο."]
[null,"Ολοκληρώθηκε","Εργασία"]
[null,"x","Ολοκλήρωση όλων των φορμών εγγραφής"]
[null,null,"Προγραμματισμός ιατρικών σχολικών εξετάσεων αν είναι απαραίτητο"]
[null,null,"Επαλήθευση όλων των απαραίτητων εμβολιασμών"]
[null,null,"Λήψη σημείωσης με οδηγίες δόσεων για τα απαραίτητα φάρμακα από ιατρό"]
[null,null,"Έλεγχος σχολικής ένδυσης"]
[null,null,"Λήψη λίστας προμηθειών σχολείου"]
[null,null,"Γνωριμία με τον εκπαιδευτικό"]
[null,null,"Προσδιορισμός της προτιμώμενης μεθόδου επικοινωνίας του εκπαιδευτικού (τηλέφωνο, ηλεκτρονικό ταχυδρομείο, γραπτή σημείωση)"]
[null,null,"Περιήγηση στο σχολείο με το παιδί σας"]
[null,null,"Βοηθήστε το παιδί σας να απομνημονεύσει το τηλέφωνο οικίας, το τηλέφωνο εργασίας και τη διεύθυνση οικίας σας"]
[null,null,"Σχεδιασμός μετακινήσεων, καθορισμός ασφαλούς σημείου συνάντησης και εξάσκηση της ρουτίνας"]
[null,null,"Αν το παιδί σας θα πηγαίνει στο σχολείο περπατώντας, εξασκηθείτε μαζί του μερικές φορές στη διαδρομή από και προς το σχολείο"]
[null,null,"Αν μοιράζεστε διαδρομές με αυτοκίνητο με άλλους οδηγούς, γνωρίστε όλους τους οδηγούς στο παιδί σας"]
[null,null,"Αν χρησιμοποιείτε λεωφορείο, προσδιορίστε τις ώρες και τις στάσεις του"]
[null,null,"Σχεδιασμός παιδικής μέριμνας/μέριμνας μετά από το σχολείο"]
[null,null,"Σχεδιασμός μενού για πρωινό, πρόχειρα σχολικά γεύματα, συσκευασμένα γεύματα και γεύματα για μετά το σχολείο"]
[null,null,"Προσδιορισμός τοποθεσίας και χρονοδιαγράμματος για σχολικές εργασίες"]
[null,null,"Καθορισμός προγράμματος ώρας ύπνου τουλάχιστον δύο εβδομάδες πριν ξεκινήσει το σχολείο"]
[null,null,"Προετοιμασία ημερολογίου για όλα τα σχολικά συμβάντα και τις δραστηριότητες"]

{"sheet":"Κοινή χρήση λίστας","index":3,"n_rows":4,"n_cols":5,"rows_kept":4}
[null,"Κοινή χρήση λίστας",null,null,"Μοιραστείτε αυτήν τη λίστα με άλλους, ώστε να μπορούν να συμβάλουν και αυτοί. Επιλέξτε \"Κοινή χρήση\" στην επάνω δεξιά γωνία ή πατήστε το πλήκτρο ALT και έπειτα YΦ. Αποθηκεύστε το αρχείο στο OneDrive και στείλτε τη σύνδεση στους φίλους σας."]
[null,"Όνομα","Διεύθυνση ηλεκτρονικού ταχυδρομείου","Κοινή χρήση;"]
[null,"Άτομο 1","someone@email.com","Ναι"]
[null,"Άτομο 2","someone@email.com","Όχι"]